lending/lending_fUSD_20250508
["ID","MTS","AMOUNT","RATE_DAILY","PERIOD"]
[360258002,1746669040516,-229.95752886,0.00019997,2]
[360258003,1746669040526,-450.0,0.00019997,2]
[360258004,1746669040535,-450.0,0.00019997,2]
[360258005,1746669040546,-801.03,0.00019997,2]
[360258006,1746669040556,-425.84034247,0.00019997,2]
[360258007,1746669040568,-375.18965753,0.00019997,2]
[360258008,1746669040580,-141.63536497,0.00019997,2]
[360258009,1746669040593,-308.36463503,0.00019997,2]
[360258010,1746669040602,-452.53936497,0.00019997,2]
[360258011,1746669040618,-49.17753923,0.00019997,2]
[360258012,1746669040627,-489.06524381,0.00019997,2]
[360258013,1746669040636,-450.0,0.00019997,2]
[360258014,1746669040646,-450.0,0.00019997,2]
[360258015,1746669040655,-465.64,0.00019997,2]
[360258016,1746669040665,-96.11721696,0.00019997,2]
[360258032,1746669043690,-409.65609303,0.000199,2]
[360258033,1746669043701,-239.67378408,0.00019995,2]
[360258034,1746669043713,-210.32621592,0.00019995,2]
[360258035,1746669043725,-388.43878994,0.00019997,2]
[360258036,1746669043735,-450.0,0.00019997,2]
[360258037,1746669043745,-521.61,0.00019997,2]
[360258038,1746669043755,-495.27005066,0.00019997,2]
[360258039,1746669043765,-450.0,0.00019997,2]
[360258040,1746669043775,-450.0,0.00019997,2]
[360258041,1746669043785,-493.84610983,0.00019997,2]
[360258042,1746669043796,-450.0,0.00019997,2]
[360258043,1746669043806,-450.0,0.00019997,2]
[360258044,1746669043817,-450.0,0.00019997,2]
[360258045,1746669043828,-450.0,0.00019997,2]
[360258046,1746669043839,-450.0,0.00019997,2]
[360258047,1746669043848,-450.0,0.00019997,2]
[360258048,1746669043859,-450.0,0.00019997,2]
[360258049,1746669043869,-10473.45,0.00019997,2]
[360258050,1746669043880,-450.0,0.00019997,2]
[360258051,1746669043890,-450.0,0.00019997,2]
[360258052,1746669043900,-450.0,0.00019997,2]
[360258053,1746669043910,-450.0,0.00019997,2]
[360258054,1746669043920,-450.0,0.00019997,2]
[360258055,1746669043930,-590.3406111,0.00019997,2]
[360258056,1746669043940,-450.0,0.00019997,2]
[360258057,1746669043951,-450.0,0.00019997,2]
[360258058,1746669043962,-928.41,0.00019997,2]
[360258059,1746669043972,-450.0,0.00019997,2]
[360258060,1746669043982,-450.0,0.00019997,2]
[360258061,1746669043993,-450.0,0.00019997,2]
[360258062,1746669044004,-450.0,0.00019997,2]
[360258063,1746669044014,-450.0,0.00019997,2]
[360258064,1746669044024,-450.0,0.00019997,2]
[360258065,1746669044035,-450.0,0.00019997,2]
[360258066,1746669044044,-450.0,0.00019997,2]
[360258067,1746669044054,-574.50857938,0.00019997,2]
[360258068,1746669044065,-450.0,0.00019997,2]
[360258069,1746669044074,-508.089794,0.00019997,2]
[360258070,1746669044085,-450.0,0.00019997,2]
[360258071,1746669044095,-509.15575234,0.00019997,2]
[360258072,1746669044105,-450.0,0.00019997,2]
[360258073,1746669044115,-450.0,0.00019997,2]
[360258074,1746669044126,-450.0,0.00019997,2]
[360258075,1746669044137,-450.0,0.00019997,2]
[360258076,1746669044149,-450.0,0.00019997,2]
[360258077,1746669044160,-450.0,0.00019997,2]
[360258078,1746669044170,-450.0,0.00019997,2]
[360258079,1746669044181,-450.0,0.00019997,2]
[360258080,1746669044192,-500.0,0.00019997,2]
[360258081,1746669044202,-756.68,0.00019997,2]
[360258082,1746669044212,-450.0,0.00019997,2]
[360258083,1746669044222,-450.0,0.00019997,2]
[360258084,1746669044232,-323.13955643,0.00019997,2]
[360258085,1746669044242,-450.0,0.00019997,2]
[360258086,1746669044252,-450.0,0.00019997,2]
[360258087,1746669044263,-505.21,0.00019997,2]
[360258088,1746669044272,-672.94,0.00019997,2]
[360258089,1746669044282,-450.0,0.00019997,2]
[360258090,1746669044292,-450.0,0.00019997,2]
[360258091,1746669044302,-450.0,0.00019997,2]
[360258092,1746669044312,-450.0,0.00019997,2]
[360258093,1746669044322,-450.0,0.00019997,2]
[360258094,1746669044335,-450.0,0.00019997,2]
[360258095,1746669044345,-405.27976772,0.00019997,2]
[360258096,1746669044356,-567.47948351,0.00019997,2]
[360258097,1746669044366,-452.51,0.00019997,2]
[360258098,1746669044377,-519.81375731,0.00019997,2]
[360258099,1746669044387,-450.0,0.00019997,2]
[360258100,1746669044399,-450.0,0.00019997,2]
[360258101,1746669044409,-450.0,0.00019997,2]
[360258102,1746669044419,-650.16,0.00019997,2]
[360258103,1746669044430,-450.0,0.00019997,2]
[360258104,1746669044440,-450.0,0.00019997,2]
[360258105,1746669044451,-189.42011015,0.00019997,2]
[360258106,1746669044461,-450.0,0.00019997,2]
[360258107,1746669044471,-450.0,0.00019997,2]
[360258108,1746669044481,-450.0,0.00019997,2]
[360258109,1746669044492,-450.0,0.00019997,2]
[360258110,1746669044502,-450.0,0.00019997,2]
[360258111,1746669044512,-450.0,0.00019997,2]
[360258112,1746669044522,-450.0,0.00019997,2]
[360258113,1746669044532,-164.340431,0.00019998,2]
[360258114,1746669044542,-450.0,0.00019998,2]
[360258115,1746669044552,-91.60598965,0.00019998,2]
[360258116,1746669044572,-207.31804183,0.00019998,2]
[360258117,1746669044582,-472.01729343,0.00019998,2]
[360258118,1746669044592,-285.79,0.00019998,2]
[360258119,1746669044602,-151.0,0.00019998,2]
[360258120,1746669044613,-183.87466474,0.00019998,2]
[360258121,1746669044625,-20.20188626,0.00019998,2]
[360258122,1746669044636,-502.92319817,0.00019998,2]
[360258123,1746669044646,-380.40046205,0.00019998,2]
[360258124,1746669044656,-450.0,0.00019998,2]
[360258125,1746669044667,-450.0,0.00019998,2]
[360258126,1746669044677,-154.289766,0.00019998,2]
[360258127,1746669044688,-450.0,0.00019998,2]
[360258128,1746669044698,-461.58812803,0.00019998,2]
[360258129,1746669044708,-450.0,0.00019998,2]
[360258130,1746669044718,-461.23483337,0.00019998,2]
[360258131,1746669044729,-168.12216928,0.00019998,2]
[360258132,1746669044739,-450.0,0.00019998,2]
[360258133,1746669044751,-450.0,0.00019998,2]
[360258134,1746669044761,-428.09449777,0.00019998,2]
[360258135,1746669044771,-450.0,0.00019998,2]
[360258136,1746669044780,-450.0,0.00019998,2]
[360258137,1746669044790,-552.21525404,0.00019998,2]
[360258138,1746669044800,-450.0,0.00019998,2]
[360258139,1746669044810,-450.0,0.00019998,2]
[360258140,1746669044821,-367.11976375,0.00019998,2]
[360258141,1746669044831,-450.0,0.00019998,2]
[360258142,1746669044841,-450.0,0.00019998,2]
[360258143,1746669044851,-450.0,0.00019998,2]
[360258144,1746669044861,-151.0,0.00019998,2]
[360258145,1746669044871,-151.514021,0.00019998,2]
[360258146,1746669044881,-450.0,0.00019998,2]
[360258147,1746669044890,-321.69569697,0.00019998,2]
[360258148,1746669044901,-1172.64,0.00019998,2]
[360258149,1746669044911,-450.0,0.00019998,2]
[360258150,1746669044921,-1172.64,0.00019998,2]
[360258151,1746669044932,-450.0,0.00019998,2]
[360258152,1746669044941,-1172.64,0.00019998,2]
[360258153,1746669044951,-450.0,0.00019998,2]
[360258154,1746669044961,-302.56297157,0.00019998,2]
[360258155,1746669044971,-151.0,0.00019998,2]
[360258156,1746669044981,-275.81979686,0.00019998,2]
[360258157,1746669044991,-151.0,0.00019998,2]
[360258158,1746669045001,-450.0,0.00019998,2]
[360258159,1746669045011,-450.0,0.00019998,2]
[360258160,1746669045021,-478.90071353,0.00019998,2]
[360258161,1746669045031,-450.0,0.00019998,2]
[360258162,1746669045040,-560.3492695,0.00019998,2]
[360258163,1746669045050,-219.21982598,0.00019998,2]
[360258164,1746669045060,-154.690047,0.00019998,2]
[360258165,1746669045070,-233.81592141,0.00019998,2]
[360258166,1746669045080,-450.0,0.00019998,2]
[360258167,1746669045090,-540.22206188,0.00019998,2]
[360258168,1746669045101,-450.0,0.00019998,2]
[360258169,1746669045111,-450.0,0.00019998,2]
[360258170,1746669045120,-228.15669219,0.00019998,2]
[360258171,1746669045130,-250.78281039,0.00019998,2]
[360258172,1746669045140,-450.0,0.00019998,2]
[360258173,1746669045150,-450.0,0.00019998,2]
[360258174,1746669045159,-450.0,0.00019998,2]
[360258175,1746669045169,-274.226378,0.00019998,2]
[360258176,1746669045179,-211.85992382,0.00019998,2]
[360258177,1746669045189,-484.30383221,0.00019998,2]
[360258178,1746669045199,-450.0,0.00019998,2]
[360258179,1746669045209,-450.0,0.00019998,2]
[360258180,1746669045219,-450.0,0.00019998,2]
[360258181,1746669045228,-155.838617,0.00019998,2]
[360258182,1746669045238,-673.40995252,0.00019998,2]
[360258183,1746669045248,-260.97939305,0.00019998,2]
[360258184,1746669045257,-151.0,0.00019998,2]
[360258185,1746669045267,-151.0,0.00019998,2]
[360258186,1746669045277,-482.2514143,0.00019998,2]
[360258187,1746669045287,-154.698347,0.00019998,2]
[360258188,1746669045297,-454.35,0.00019998,2]
[360258189,1746669045308,-471.8315178,0.00019998,2]
[360258190,1746669045321,-310.8732834,0.00019998,2]
[360258191,1746669045331,-450.0,0.00019998,2]
[360258192,1746669045340,-450.0,0.00019998,2]
[360258193,1746669045350,-298.67655045,0.00019998,2]
[360258194,1746669045361,-306.94850793,0.00019998,2]
[360258195,1746669045370,-475.78724462,0.00019998,2]
[360258196,1746669045380,-450.0,0.00019998,2]
[360258197,1746669045391,-200.52055334,0.00019998,2]
[360258198,1746669045401,-450.0,0.00019998,2]
[360258199,1746669045411,-450.0,0.00019998,2]
[360258200,1746669045427,-450.0,0.00019998,2]
[360258201,1746669045436,-253.869893,0.00019998,2]
[360258202,1746669045446,-370.31007688,0.00019998,2]
[360258203,1746669045456,-271.5116349,0.00019998,2]
[360258204,1746669045467,-220.46662238,0.00019998,2]
[360258205,1746669045477,-450.0,0.00019998,2]
[360258206,1746669045487,-450.0,0.00019998,2]
[360258207,1746669045496,-450.0,0.00019998,2]
[360258208,1746669045506,-151.0,0.00019998,2]
[360258209,1746669045516,-151.0,0.00019998,2]
[360258210,1746669045526,-151.0,0.00019998,2]
[360258211,1746669045536,-450.0,0.00019998,2]
[360258212,1746669045549,-450.0,0.00019998,2]
[360258213,1746669045559,-450.0,0.00019998,2]
[360258214,1746669045568,-152.569309,0.00019998,2]
[360258215,1746669045578,-151.0,0.00019998,2]
[360258216,1746669045588,-450.0,0.00019998,2]
[360258217,1746669045598,-450.0,0.00019998,2]
[360258218,1746669045607,-450.0,0.00019998,2]
[360258219,1746669045618,-151.0,0.00019998,2]
[360258220,1746669045628,-1386.53,0.00019998,2]
[360258221,1746669045638,-1386.53,0.00019998,2]
[360258222,1746669045648,-471.04312934,0.00019998,2]
[360258223,1746669045658,-645.3,0.00019998,2]
[360258224,1746669045669,-645.3,0.00019998,2]
[360258225,1746669045844,-151.0,0.00019998,2]
[360258226,1746669045860,-151.0,0.00019998,2]
[360258227,1746669045870,-151.0,0.00019998,2]
[360258228,1746669045881,-151.0,0.00019998,2]
[360258229,1746669045891,-151.0,0.00019998,2]
[360258230,1746669045900,-450.0,0.00019998,2]
[360258231,1746669045910,-450.0,0.00019998,2]
[360258232,1746669045920,-323.7295513,0.00019998,2]
[360258233,1746669045931,-687.48,0.00019998,2]
[360258234,1746669045941,-687.48,0.00019998,2]
[360258235,1746669045950,-450.0,0.00019998,2]
[360258236,1746669045960,-450.0,0.00019998,2]
[360258237,1746669045969,-450.0,0.00019998,2]
[360258238,1746669045979,-151.0,0.00019998,2]
[360258239,1746669045989,-6532.9,0.00019998,2]
[360258240,1746669045999,-6532.9,0.00019998,2]
[360258241,1746669046008,-214.76089492,0.00019998,2]
[360258242,1746669046018,-154.068034,0.00019998,2]
[360258243,1746669046027,-186.46658217,0.00019998,2]
[360258244,1746669046037,-178.69757465,0.00019998,2]
[360258245,1746669046048,-450.0,0.00019998,2]
[360258246,1746669046058,-450.0,0.00019998,2]
[360258247,1746669046067,-450.0,0.00019998,2]
[360258248,1746669046077,-450.0,0.00019998,2]
[360258249,1746669046086,-450.0,0.00019998,2]
[360258250,1746669046096,-450.0,0.00019998,2]
[360258251,1746669046106,-450.0,0.00019998,2]
[360258252,1746669046115,-450.0,0.00019998,2]
[360258253,1746669046125,-450.0,0.00019998,2]
[360258254,1746669046134,-450.0,0.00019998,2]
[360258255,1746669046143,-450.0,0.00019998,2]
[360258256,1746669046153,-450.0,0.00019998,2]
[360258257,1746669046162,-450.0,0.00019998,2]
[360258258,1746669046171,-320.26463101,0.00019998,2]
[360258259,1746669046181,-95.99688946,0.00019998,2]
[360258260,1746669046198,-232.9089111,0.00019998,2]
[360258261,1746669046208,-450.0,0.00019998,2]
[360258262,1746669046218,-450.0,0.00019998,2]
[360258263,1746669046228,-598.3912324,0.00019998,2]
[360258264,1746669046240,-170.93167375,0.00019998,2]
[360258265,1746669046251,-435.41235761,0.00019998,2]
[360258266,1746669046397,-1133.13,0.00019995,2]
[360258267,1746669046407,-450.0,0.00019995,2]
[360258268,1746669046417,-344.30311144,0.00019997,2]
[360258269,1746669046430,-788.82688856,0.00019997,2]
[360258270,1746669046440,-450.0,0.00019997,2]
[360258271,1746669046449,-526.30596864,0.00019998,2]
[360258272,1746669046459,-1132.65,0.00019998,2]
[360258274,1746669046468,-207.52021575,0.00019998,2]
[360258276,1746669046478,-450.0,0.00019998,2]
[360258278,1746669046487,-450.0,0.00019998,2]
[360258280,1746669046497,-420.77426847,0.00019998,2]
[360258281,1746669046507,-450.0,0.00019998,2]
[360258283,1746669046517,-450.0,0.00019998,2]
[360258285,1746669046526,-450.0,0.00019998,2]
[360258287,1746669046536,-450.0,0.00019998,2]
[360258289,1746669046546,-450.0,0.00019998,2]
[360258291,1746669046556,-450.0,0.00019998,2]
[360258293,1746669046566,-450.0,0.00019998,2]
[360258295,1746669046575,-450.0,0.00019998,2]
[360258297,1746669046585,-450.0,0.00019998,2]
[360258299,1746669046594,-450.0,0.00019998,2]
[360258301,1746669046602,-473.35593742,0.00019998,2]
[360258303,1746669046612,-801.03,0.00019998,2]
[360258305,1746669046622,-801.03,0.00019998,2]
[360258307,1746669046631,-450.0,0.00019998,2]
[360258309,1746669046641,-450.0,0.00019998,2]
[360258311,1746669046650,-265.18768815,0.00019998,2]
[360258313,1746669046660,-156.415573,0.00019998,2]
[360258315,1746669046671,-151.0,0.00019998,2]
[360258317,1746669046680,-450.0,0.00019998,2]
[360258319,1746669046690,-450.0,0.00019998,2]
[360258321,1746669046699,-450.0,0.00019998,2]
[360258323,1746669046709,-151.0,0.00019998,2]
[360258325,1746669046719,-465.64,0.00019998,2]
[360258327,1746669046729,-465.64,0.00019998,2]
[360258329,1746669046738,-465.64,0.00019998,2]
[360258331,1746669046748,-153.128001,0.00019998,2]
[360258332,1746669046758,-151.0,0.00019998,2]
[360258333,1746669046768,-450.0,0.00019998,2]
[360258334,1746669046778,-205.69771935,0.00019998,2]
[360258335,1746669046788,-521.61,0.00019998,2]
[360258336,1746669046798,-521.61,0.00019998,2]
[360258337,1746669046810,-521.61,0.00019998,2]
[360258338,1746669046820,-157.45055874,0.00019998,2]
[360258339,1746669046829,-372.33725036,0.00019998,2]
[360258340,1746669046839,-151.0,0.00019998,2]
[360258341,1746669046849,-450.0,0.00019998,2]
[360258342,1746669046859,-194.26,0.00019998,2]
[360258343,1746669046869,-151.0,0.00019998,2]
[360258344,1746669046879,-450.0,0.00019998,2]
[360258345,1746669046889,-325.78013845,0.00019998,2]
[360258346,1746669046899,-599.8977161,0.00019998,2]
[360258347,1746669046909,-151.0,0.00019998,2]
[360258348,1746669046919,-450.0,0.00019998,2]
[360258349,1746669046929,-450.0,0.00019998,2]
[360258350,1746669046939,-260.10208351,0.00019998,2]
[360258351,1746669046949,-450.0,0.00019998,2]
[360258352,1746669046959,-450.0,0.00019998,2]
[360258353,1746669046970,-450.0,0.00019998,2]
[360258354,1746669046979,-450.0,0.00019998,2]
[360258355,1746669046988,-269.48880843,0.00019998,2]
[360258356,1746669046998,-450.0,0.00019998,2]
[360258357,1746669047008,-450.0,0.00019998,2]
[360258358,1746669047018,-450.0,0.00019998,2]
[360258359,1746669047028,-2757.96747731,0.00019998,2]
[360258360,1746669047041,-7715.48252269,0.00019998,2]
[360258361,1746669047051,-10473.45,0.00019998,2]
[360258362,1746669047061,-4512.11192405,0.00019998,2]
[360258363,1746669047073,-5961.33807595,0.00019998,2]
[360258364,1746669047082,-450.0,0.00019998,2]
[360258365,1746669047092,-288.54554668,0.00019998,2]
[360258366,1746669047104,-161.45445332,0.00019998,2]
[360258367,1746669047114,-269.77516313,0.00019998,2]
[360258369,1746669135972,500.0,0.0003,30]
[360258386,1746669227761,455.0,0.0003,30]
[360258387,1746669233663,500.0,0.00029589,30]
[360258388,1746669233977,545.25556064,0.00029863,35]
[360258390,1746669340025,14016.553,0.0003,30]
[360258391,1746669441043,500.0,0.0003,30]
[360258392,1746669492967,150.0,0.00018986,7]
[360258394,1746669550995,500.0,0.00029589,30]
[360258395,1746669551725,500.0,0.00029863,30]
[360258399,1746669729413,500.0,0.00029589,30]
[360258400,1746669729672,500.0,0.00029863,35]
[360258417,1746669795442,500.0,0.0003,30]
[360258431,1746669851077,317.298618,0.000301,120]
[360258432,1746669878549,785.75,0.00018861,2]
[360258441,1746670140445,3000.0,0.0003,30]
[360258442,1746670149691,181.98,0.00019,2]
[360258443,1746670150630,490.9,0.00016935,2]
[360258444,1746670150836,490.9,0.00019199,2]
[360258449,1746670232189,-180.46058993,0.00019689,2]
[360258450,1746670232200,-200.0,0.0001969,2]
[360258451,1746670232210,-4.71182011,0.0001969,2]
[360258452,1746670232294,-195.28817989,0.0001969,2]
[360258453,1746670232306,-339.38436072,0.000197,2]
[360258454,1746670232317,-500.51054462,0.00019773,2]
[360258455,1746670232327,-502.30529132,0.00019773,2]
[360258456,1746670232337,-172.53325216,0.00019773,2]
[360258457,1746670232347,-500.0,0.00019773,2]
[360258458,1746670232356,-300.0,0.00019778,2]
[360258459,1746670232365,-207.4,0.00019778,2]
[360258460,1746670232375,-153.28459247,0.00019778,2]
[360258461,1746670232384,-300.0,0.00019779,2]
[360258462,1746670232395,-1200.0,0.00019779,2]
[360258463,1746670232404,-4981.29377883,0.0001978,2]
[360258464,1746670232454,-9247.60673469,0.0001978,2]
[360258466,1746670232464,-1292.57977904,0.0001979,2]
[360258468,1746670232474,-53815.99594712,0.0001979,2]
[360258493,1746670238295,-7300.36680487,0.0001979,2]
[360258494,1746670238310,-1267.20540258,0.00019791,2]
[360258495,1746670238319,-200.0,0.00019797,2]
[360258500,1746670238328,-179.28605362,0.00019798,2]
[360258503,1746670238557,-1105.57506675,0.00019799,2]
[360258505,1746670238567,-1091.35384046,0.00019805,2]
[360258507,1746670238577,-500.0,0.00019808,2]
[360258509,1746670238586,-500.0,0.00019808,2]
[360258511,1746670238596,-178.42355552,0.00019808,2]
[360258513,1746670238606,-500.0,0.00019808,2]
[360258515,1746670238615,-500.0,0.00019808,2]
[360258517,1746670238626,-493.8497496,0.00019808,2]
[360258519,1746670238635,-358.02253809,0.00019808,2]
[360258521,1746670238645,-1105.57506668,0.0001981,2]
[360258523,1746670238655,-200.0,0.00019819,2]
[360258525,1746670238664,-1105.57506668,0.00019821,2]
[360258527,1746670238674,-1105.57506668,0.00019833,2]
[360258529,1746670238683,-1105.57506668,0.00019844,2]
[360258531,1746670238693,-1292.57977904,0.00019845,2]
[360258533,1746670238703,-200.0,0.00019845,2]
[360258535,1746670238712,-200.0,0.00019845,2]
[360258536,1746670238721,-306.79354747,0.00019845,2]
[360258539,1746670238732,-1091.35384046,0.00019853,2]
[360258541,1746670238741,-1105.57506668,0.00019855,2]
[360258542,1746670238751,-1105.57506668,0.00019866,2]
[360258544,1746670238760,-1267.20540258,0.00019868,2]
[360258546,1746670238770,-501.52929831,0.00019873,2]
[360258548,1746670238779,-503.12784818,0.00019873,2]
[360258550,1746670238788,-169.56177066,0.00019873,2]
[360258552,1746670238798,-500.0,0.00019873,2]
[360258554,1746670238808,-500.0,0.00019873,2]
[360258556,1746670238818,-501.68576469,0.00019873,2]
[360258559,1746670238832,-481.11867024,0.00019873,2]
[360258561,1746670238842,-500.0,0.00019873,2]
[360258563,1746670238851,-200.0,0.00019876,2]
[360258565,1746670238862,-1105.57506668,0.00019878,2]
[360258567,1746670238872,-279.6771,0.00019886,2]
[360258569,1746670238881,-548.4817,0.00019886,2]
[360258571,1746670238891,-322.3556,0.00019886,2]
[360258573,1746670238901,-316.9373,0.00019886,2]
[360258575,1746670238910,-306.79354747,0.00019889,2]
[360258577,1746670238919,-1105.57506668,0.00019889,2]
[360258579,1746670238929,-450.0,0.00019895,2]
[360258581,1746670238940,-450.0,0.00019895,2]
[360258583,1746670238951,-450.0,0.00019895,2]
[360258585,1746670238962,-450.0,0.00019895,2]
[360258587,1746670238971,-894.08,0.00019895,2]
[360258589,1746670238982,-373.49863303,0.00019895,2]
[360258591,1746670238991,-450.0,0.00019895,2]
[360258593,1746670239001,-204.77435854,0.00019895,2]
[360258595,1746670239014,-450.0,0.00019895,2]
[360258597,1746670239025,-450.0,0.00019895,2]
[360258599,1746670239036,-450.0,0.00019895,2]
[360258601,1746670239047,-549.16319549,0.00019895,2]
[360258603,1746670239056,-170.73909891,0.00019895,2]
[360258606,1746670239069,-328.84165843,0.00019895,2]
[360258608,1746670239078,-450.0,0.00019895,2]
[360258610,1746670239091,-450.0,0.00019895,2]
[360258612,1746670239102,-463.11,0.00019895,2]
[360258614,1746670239112,-244.68141655,0.00019895,2]
[360258616,1746670239122,-450.0,0.00019895,2]
[360258618,1746670239132,-214.01530496,0.00019895,2]
[360258620,1746670239142,-450.0,0.00019895,2]
[360258622,1746670239151,-450.0,0.00019895,2]
[360258624,1746670239162,-600.56,0.00019895,2]
[360258626,1746670239171,-450.0,0.00019895,2]
[360258628,1746670239181,-1000.0,0.00019895,2]
[360258630,1746670239191,-450.0,0.00019895,2]
[360258632,1746670239201,-565.62662276,0.00019895,2]
[360258634,1746670239211,-450.0,0.00019895,2]
[360258636,1746670239222,-791.1761,0.00019895,2]
[360258638,1746670239232,-743.7828,0.00019895,2]
[360258640,1746670239243,-111314.78033045,0.00019896,2]
[360258653,1746670240346,-16489.60736955,0.00019896,2]
[360258654,1746670240357,-450.0,0.00019896,2]
[360258655,1746670240367,-450.0,0.00019896,2]
[360258656,1746670240376,-450.0,0.00019896,2]
[360258657,1746670240386,-450.0,0.00019896,2]
[360258658,1746670240396,-272.74858186,0.00019896,2]
[360258659,1746670240405,-500.0,0.00019896,2]
[360258660,1746670240415,-450.0,0.00019896,2]
[360258661,1746670240425,-450.0,0.00019896,2]
[360258662,1746670240435,-450.0,0.00019896,2]
[360258663,1746670240445,-450.0,0.00019896,2]
[360258664,1746670240454,-450.0,0.00019896,2]
[360258665,1746670240464,-175.06903462,0.00019896,2]
[360258666,1746670240474,-450.0,0.00019896,2]
[360258667,1746670240483,-450.0,0.00019896,2]
[360258668,1746670240493,-486.02470141,0.00019896,2]
[360258669,1746670240503,-450.0,0.00019896,2]
[360258670,1746670240513,-450.0,0.00019896,2]
[360258671,1746670240523,-450.0,0.00019896,2]
[360258672,1746670240534,-450.0,0.00019896,2]
[360258673,1746670240544,-450.0,0.00019896,2]
[360258674,1746670240556,-450.0,0.00019896,2]
[360258675,1746670240566,-450.0,0.00019896,2]
[360258676,1746670240578,-450.0,0.00019896,2]
[360258677,1746670240590,-450.0,0.00019896,2]
[360258678,1746670240599,-450.0,0.00019896,2]
[360258679,1746670240609,-450.0,0.00019896,2]
[360258680,1746670240619,-450.0,0.00019896,2]
[360258681,1746670240629,-174.83270177,0.00019896,2]
[360258682,1746670240639,-450.0,0.00019896,2]
[360258683,1746670240649,-450.0,0.00019896,2]
[360258684,1746670240660,-450.0,0.00019896,2]
[360258685,1746670240671,-484.05,0.00019896,2]
[360258686,1746670240682,-530.13486901,0.00019896,2]
[360258687,1746670240693,-450.0,0.00019896,2]
[360258688,1746670240703,-450.0,0.00019898,2]
[360258689,1746670240713,-479.82111561,0.00019898,2]
[360258690,1746670240723,-450.0,0.00019898,2]
[360258691,1746670240734,-461.28793936,0.00019898,2]
[360258692,1746670240745,-468.13030863,0.00019898,2]
[360258693,1746670240755,-481.35415549,0.00019898,2]
[360258694,1746670240765,-496.88925994,0.00019898,2]
[360258695,1746670240776,-265.1576273,0.00019898,2]
[360258696,1746670240786,-533.02932061,0.00019898,2]
[360258697,1746670240796,-484.4755416,0.00019898,2]
[360258698,1746670240805,-499.20861713,0.00019898,2]
[360258699,1746670240814,-482.42660409,0.00019898,2]
[360258700,1746670240823,-381.51641856,0.00019898,2]
[360258701,1746670240832,-527.82325398,0.00019898,2]
[360258702,1746670240842,-556.64463139,0.00019898,2]
[360258703,1746670240851,-522.00703735,0.00019898,2]
[360258704,1746670240861,-235.51786617,0.00019898,2]
[360258705,1746670240871,-450.0,0.00019898,2]
[360258706,1746670240881,-181.06971337,0.00019898,2]
[360258707,1746670240891,-450.0,0.00019898,2]
[360258708,1746670240901,-450.0,0.00019898,2]
[360258709,1746670240911,-458.23289264,0.00019898,2]
[360258710,1746670240921,-450.0,0.00019898,2]
[360258711,1746670240931,-484.06167178,0.00019898,2]
[360258712,1746670240940,-450.0,0.00019898,2]
[360258713,1746670240950,-450.0,0.00019898,2]
[360258714,1746670240959,-450.0,0.00019898,2]
[360258715,1746670240969,-596.35859991,0.00019898,2]
[360258716,1746670240979,-507.0237299,0.00019898,2]
[360258717,1746670240988,-455.64891368,0.00019898,2]
[360258718,1746670240998,-556.63009545,0.00019898,2]
[360258719,1746670241014,-481.74326314,0.00019898,2]
[360258720,1746670241024,-480.45036268,0.00019898,2]
[360258721,1746670241034,-231.86010453,0.00019898,2]